[Event "Titled Tuesday Blitz March 14 Late 2023"]
[White "Gharamian, Tigran"]
[Black "Ruiz Castillo, Joshua Daniel"]
[WhiteFideId "13301527"]
[BlackFideId "4400704"]
[WhiteElo "2632"]
[BlackElo "2491"]
[Result "0-1"]
[Round "01"]
[TimeControl "180+2"]
[Date "2023.03.14"]
[WhiteClock "0:00:16"]
[BlackClock "0:00:19"]

1. d4 {[%clk 0:03:00]}  Nf6 {[%clk 0:02:55]} 2. Nf3 {[%clk 0:03:01]}  e6 {[%clk 0:02:45]} 3. c4 {[%clk 0:03:01]}  d5 {[%clk 0:02:43]} 4. Nc3 {[%clk 0:03:00]}  a6 {[%clk 0:02:39]} 5. c5 {[%clk 0:02:49]}  b6 {[%clk 0:02:35]} 6. cxb6 {[%clk 0:02:44]}  cxb6 {[%clk 0:02:35]} 7. Bf4 {[%clk 0:02:44]}  Bd6 {[%clk 0:02:35]} 8. e3 {[%clk 0:02:44]}  Nc6 {[%clk 0:02:32]} 9. Bd3 {[%clk 0:02:41]}  O-O {[%clk 0:02:32]} 10. Ne5 {[%clk 0:02:37]}  Bxe5 {[%clk 0:02:28]} 11. dxe5 {[%clk 0:02:38]}  Nd7 {[%clk 0:02:28]} 12. O-O {[%clk 0:01:52]}  g6 {[%clk 0:02:01]} 13. Bh6 {[%clk 0:01:47]}  Re8 {[%clk 0:01:59]} 14. f4 {[%clk 0:01:39]}  Nc5 {[%clk 0:01:57]} 15. Bg5 {[%clk 0:01:32]}  Qd7 {[%clk 0:01:52]} 16. Rf3 {[%clk 0:01:23]}  Nxd3 {[%clk 0:01:11]} 17. Qxd3 {[%clk 0:01:21]}  b5 {[%clk 0:01:11]} 18. Rh3 {[%clk 0:01:02]}  Qa7 {[%clk 0:00:57]} 19. Rd1 {[%clk 0:00:39]}  b4 {[%clk 0:00:55]} 20. Ne2 {[%clk 0:00:38]}  a5 {[%clk 0:00:55]} 21. Nd4 {[%clk 0:00:38]}  Ba6 {[%clk 0:00:25]} 22. Qd2 {[%clk 0:00:37]}  Nxd4 {[%clk 0:00:22]} 23. exd4 {[%clk 0:00:38]}  Rec8 {[%clk 0:00:21]} 24. Qf2 {[%clk 0:00:32]}  h5 {[%clk 0:00:19]} 25. g4 {[%clk 0:00:30]}  Qc7 {[%clk 0:00:15]} 26. gxh5 {[%clk 0:00:27]}  Qc2 {[%clk 0:00:15]} 27. Rd2 {[%clk 0:00:25]}  Qc1+ {[%clk 0:00:12]} 28. Kg2 {[%clk 0:00:25]}  Bf1+ {[%clk 0:00:11]} 29. Qxf1 {[%clk 0:00:20]}  Qxd2+ {[%clk 0:00:10]} 30. Qf2 {[%clk 0:00:21]}  Qxf2+ {[%clk 0:00:11]} 31. Kxf2 {[%clk 0:00:21]}  gxh5 {[%clk 0:00:11]} 32. Bf6 {[%clk 0:00:18]}  Kf8 {[%clk 0:00:11]} 33. Rxh5 {[%clk 0:00:18]}  Ke8 {[%clk 0:00:11]} 34. Rh8+ {[%clk 0:00:17]}  Kd7 {[%clk 0:00:12]} 35. Rh7 {[%clk 0:00:16]}  Rc2+ {[%clk 0:00:12]} 36. Ke3 {[%clk 0:00:16]}  Rxb2 {[%clk 0:00:12]} 37. Rxf7+ {[%clk 0:00:16]}  Kc6 {[%clk 0:00:13]} 38. Re7 {[%clk 0:00:16]}  Rxa2 {[%clk 0:00:14]} 39. Rxe6+ {[%clk 0:00:17]}  Kb5 {[%clk 0:00:15]} 40. Rd6 {[%clk 0:00:17]}  Kc4 {[%clk 0:00:15]} 41. e6 {[%clk 0:00:17]}  b3 {[%clk 0:00:15]} 42. Rc6+ {[%clk 0:00:17]}  Kb5 {[%clk 0:00:15]} 43. Rc1 {[%clk 0:00:16]}  b2 {[%clk 0:00:15]} 44. Rb1 {[%clk 0:00:16]}  a4 {[%clk 0:00:16]} 45. e7 {[%clk 0:00:17]}  a3 {[%clk 0:00:16]} 46. Kd2 {[%clk 0:00:16]}  Ra1 {[%clk 0:00:17]} 47. Kc2 {[%clk 0:00:17]}  Rxb1 {[%clk 0:00:17]} 48. Kxb1 {[%clk 0:00:17]}  Kc4 {[%clk 0:00:18]} 49. Be5 {[%clk 0:00:16]}  Kb3 {[%clk 0:00:19]} 0-1


[Site "https://www.chess.com"]

[Event "Titled Tuesday Blitz March 14 Late 2023"]
[White "Gamage, Wanshini Vidusama"]
[Black "Garcia Pantoja, Roberto"]
[WhiteFideId "9953752"]
[BlackFideId "3509265"]
[WhiteElo "2269"]
[BlackElo "2544"]
[Result "0-1"]
[Round "01"]
[TimeControl "180+2"]
[Date "2023.03.14"]
[WhiteClock "0:00:15"]
[BlackClock "0:00:15"]

1. e4 {[%clk 0:02:56]}  c5 {[%clk 0:02:58]} 2. Nf3 {[%clk 0:02:56]}  d6 {[%clk 0:02:58]} 3. d4 {[%clk 0:02:56]}  cxd4 {[%clk 0:02:59]} 4. Nxd4 {[%clk 0:02:56]}  Nf6 {[%clk 0:02:59]} 5. Nc3 {[%clk 0:02:57]}  a6 {[%clk 0:02:57]} 6. Rg1 {[%clk 0:02:57]}  h5 {[%clk 0:02:51]} 7. Be3 {[%clk 0:02:55]}  e5 {[%clk 0:02:47]} 8. Nb3 {[%clk 0:02:55]}  Be6 {[%clk 0:02:46]} 9. h3 {[%clk 0:02:53]}  h4 {[%clk 0:02:44]} 10. g4 {[%clk 0:02:53]}  hxg3 {[%clk 0:02:43]} 11. Rxg3 {[%clk 0:02:53]}  Nbd7 {[%clk 0:02:41]} 12. Qf3 {[%clk 0:02:50]}  Rc8 {[%clk 0:02:39]} 13. O-O-O {[%clk 0:02:48]}  Rxc3 {[%clk 0:02:31]} 14. bxc3 {[%clk 0:02:48]}  Qc7 {[%clk 0:02:30]} 15. Bg5 {[%clk 0:02:25]}  Be7 {[%clk 0:02:21]} 16. Bxf6 {[%clk 0:02:24]}  Bxf6 {[%clk 0:02:19]} 17. Qd3 {[%clk 0:02:15]}  Ke7 {[%clk 0:02:14]} 18. Be2 {[%clk 0:01:58]}  Nb6 {[%clk 0:02:03]} 19. Rdg1 {[%clk 0:01:48]}  g6 {[%clk 0:02:02]} 20. Bg4 {[%clk 0:01:34]}  Bxg4 {[%clk 0:02:00]} 21. hxg4 {[%clk 0:01:32]}  Bg5+ {[%clk 0:01:59]} 22. Kb1 {[%clk 0:01:29]}  Bf4 {[%clk 0:01:56]} 23. Rh3 {[%clk 0:01:26]}  Rxh3 {[%clk 0:01:51]} 24. Qxh3 {[%clk 0:01:26]}  Na4 {[%clk 0:01:52]} 25. Qh4+ {[%clk 0:01:20]}  Ke6 {[%clk 0:01:24]} 26. Qh3 {[%clk 0:01:16]}  Nxc3+ {[%clk 0:01:24]} 27. Kb2 {[%clk 0:01:16]}  Na4+ {[%clk 0:01:21]} 28. Kb1 {[%clk 0:01:15]}  Qc3 {[%clk 0:01:20]} 29. Qxc3 {[%clk 0:00:58]}  Nxc3+ {[%clk 0:01:21]} 30. Kb2 {[%clk 0:00:59]}  Nxe4 {[%clk 0:01:22]} 31. f3 {[%clk 0:00:54]}  Ng5 {[%clk 0:01:18]} 32. Rf1 {[%clk 0:00:52]}  Be3 {[%clk 0:01:11]} 33. c4 {[%clk 0:00:50]}  b6 {[%clk 0:01:10]} 34. Kc2 {[%clk 0:00:45]}  f5 {[%clk 0:01:09]} 35. Kd3 {[%clk 0:00:42]}  f4 {[%clk 0:00:57]} 36. Nd2 {[%clk 0:00:42]}  Bxd2 {[%clk 0:00:56]} 37. Kxd2 {[%clk 0:00:43]}  b5 {[%clk 0:00:54]} 38. cxb5 {[%clk 0:00:43]}  axb5 {[%clk 0:00:55]} 39. Ke2 {[%clk 0:00:38]}  Kd5 {[%clk 0:00:34]} 40. Rd1+ {[%clk 0:00:38]}  Kc5 {[%clk 0:00:34]} 41. Rc1+ {[%clk 0:00:39]}  Kb6 {[%clk 0:00:34]} 42. Rd1 {[%clk 0:00:39]}  Nf7 {[%clk 0:00:34]} 43. Kd3 {[%clk 0:00:32]}  d5 {[%clk 0:00:33]} 44. Ke2 {[%clk 0:00:32]}  Kc5 {[%clk 0:00:32]} 45. Rc1+ {[%clk 0:00:32]}  Kb6 {[%clk 0:00:31]} 46. Rd1 {[%clk 0:00:32]}  Kc6 {[%clk 0:00:31]} 47. Rc1+ {[%clk 0:00:32]}  Kd6 {[%clk 0:00:30]} 48. Rb1 {[%clk 0:00:33]}  e4 {[%clk 0:00:18]} 49. Rxb5 {[%clk 0:00:30]}  Ne5 {[%clk 0:00:18]} 50. fxe4 {[%clk 0:00:28]}  dxe4 {[%clk 0:00:19]} 51. a4 {[%clk 0:00:20]}  f3+ {[%clk 0:00:18]} 52. Ke1 {[%clk 0:00:15]}  Nd3+ {[%clk 0:00:15]} 53. Kf1 {[%clk 0:00:15]}  e3 {[%clk 0:00:15]} 0-1


[Site "https://www.chess.com"]

[Event "Titled Tuesday Blitz March 14 Late 2023"]
[White "Fishbein, Alexander"]
[Black "Jenkins, Drake"]
[WhiteFideId "2000377"]
[BlackFideId "2022397"]
[WhiteElo "2415"]
[BlackElo "2249"]
[Result "1-0"]
[Round "01"]
[TimeControl "180+2"]
[Date "2023.03.14"]
[WhiteClock "0:00:30"]
[BlackClock "0:00:04"]

1. e4 {[%clk 0:03:00]}  c6 {[%clk 0:02:59]} 2. d4 {[%clk 0:02:56]}  d5 {[%clk 0:03:00]} 3. Nc3 {[%clk 0:02:55]}  dxe4 {[%clk 0:02:59]} 4. Nxe4 {[%clk 0:02:55]}  Nf6 {[%clk 0:03:00]} 5. Ng3 {[%clk 0:02:54]}  h5 {[%clk 0:02:59]} 6. h4 {[%clk 0:02:54]}  Bg4 {[%clk 0:02:58]} 7. Be2 {[%clk 0:02:53]}  Bxe2 {[%clk 0:02:56]} 8. N3xe2 {[%clk 0:02:47]}  g6 {[%clk 0:02:54]} 9. Nf3 {[%clk 0:02:47]}  Bg7 {[%clk 0:02:54]} 10. c3 {[%clk 0:02:45]}  O-O {[%clk 0:02:50]} 11. Nf4 {[%clk 0:02:43]}  c5 {[%clk 0:02:46]} 12. Be3 {[%clk 0:02:42]}  cxd4 {[%clk 0:02:39]} 13. Qxd4 {[%clk 0:02:40]}  Nc6 {[%clk 0:02:38]} 14. Qxd8 {[%clk 0:02:39]}  Rfxd8 {[%clk 0:02:30]} 15. Ke2 {[%clk 0:02:38]}  Ng4 {[%clk 0:02:25]} 16. Rhd1 {[%clk 0:02:34]}  Nxe3 {[%clk 0:02:25]} 17. fxe3 {[%clk 0:02:33]}  e6 {[%clk 0:02:14]} 18. g3 {[%clk 0:02:30]}  Kf8 {[%clk 0:02:12]} 19. Nd4 {[%clk 0:02:25]}  Ne5 {[%clk 0:01:58]} 20. Ndxe6+ {[%clk 0:02:23]}  fxe6 {[%clk 0:01:51]} 21. Nxe6+ {[%clk 0:02:22]}  Ke7 {[%clk 0:01:46]} 22. Rxd8 {[%clk 0:02:13]}  Rxd8 {[%clk 0:01:43]} 23. Nxd8 {[%clk 0:02:10]}  Kxd8 {[%clk 0:01:44]} 24. e4 {[%clk 0:02:03]}  Kc7 {[%clk 0:01:23]} 25. Rd1 {[%clk 0:02:01]}  Nc4 {[%clk 0:01:21]} 26. b3 {[%clk 0:01:55]}  Nd6 {[%clk 0:01:20]} 27. Kd3 {[%clk 0:01:55]}  Be5 {[%clk 0:01:16]} 28. Rg1 {[%clk 0:01:51]}  Bf6 {[%clk 0:01:07]} 29. g4 {[%clk 0:01:50]}  Bxh4 {[%clk 0:01:07]} 30. gxh5 {[%clk 0:01:50]}  gxh5 {[%clk 0:01:06]} 31. Rh1 {[%clk 0:01:50]}  Be7 {[%clk 0:00:54]} 32. Rxh5 {[%clk 0:01:50]}  a6 {[%clk 0:00:43]} 33. e5 {[%clk 0:01:48]}  Nc8 {[%clk 0:00:36]} 34. Ke4 {[%clk 0:01:47]}  Na7 {[%clk 0:00:28]} 35. Rh7 {[%clk 0:01:45]}  Kd7 {[%clk 0:00:25]} 36. Kd5 {[%clk 0:01:35]}  Nb5 {[%clk 0:00:24]} 37. e6+ {[%clk 0:01:15]}  Kd8 {[%clk 0:00:23]} 38. c4 {[%clk 0:01:11]}  Nc3+ {[%clk 0:00:22]} 39. Ke5 {[%clk 0:01:06]}  Nxa2 {[%clk 0:00:22]} 40. Rh8+ {[%clk 0:01:06]}  Kc7 {[%clk 0:00:22]} 41. Re8 {[%clk 0:01:06]}  Bd6+ {[%clk 0:00:22]} 42. Kd4 {[%clk 0:01:01]}  Nc1 {[%clk 0:00:22]} 43. Kd5 {[%clk 0:00:39]}  Nxb3 {[%clk 0:00:20]} 44. e7 {[%clk 0:00:39]}  Bxe7 {[%clk 0:00:15]} 45. Rxe7+ {[%clk 0:00:39]}  Kb6 {[%clk 0:00:16]} 46. Re6+ {[%clk 0:00:38]}  Ka5 {[%clk 0:00:07]} 47. c5 {[%clk 0:00:32]}  Nd2 {[%clk 0:00:04]} 48. Rb6 {[%clk 0:00:30]} 1-0


[Site "https://www.chess.com"]

[Event "Titled Tuesday Blitz March 14 Late 2023"]
[White "Tagliati, Eleonore"]
[Black "Vlassov, Nikolai"]
[WhiteFideId "45172234"]
[BlackFideId "4103360"]
[WhiteElo "2218"]
[BlackElo "2324"]
[Result "0-1"]
[Round "01"]
[TimeControl "180+2"]
[Date "2023.03.14"]
[WhiteClock "0:01:20"]
[BlackClock "0:01:31"]

1. e4 {[%clk 0:02:51]}  Nc6 {[%clk 0:02:59]} 2. Nf3 {[%clk 0:02:49]}  d5 {[%clk 0:02:59]} 3. exd5 {[%clk 0:02:48]}  Qxd5 {[%clk 0:03:00]} 4. Nc3 {[%clk 0:02:48]}  Qa5 {[%clk 0:03:00]} 5. Be2 {[%clk 0:02:47]}  Bg4 {[%clk 0:02:59]} 6. O-O {[%clk 0:02:42]}  O-O-O {[%clk 0:02:59]} 7. h3 {[%clk 0:02:39]}  Bh5 {[%clk 0:02:56]} 8. d3 {[%clk 0:02:33]}  e5 {[%clk 0:02:55]} 9. Bg5 {[%clk 0:02:26]}  f6 {[%clk 0:02:50]} 10. Bd2 {[%clk 0:02:25]}  Nge7 {[%clk 0:02:28]} 11. Nxe5 {[%clk 0:01:58]}  Bxe2 {[%clk 0:02:22]} 12. Nxc6 {[%clk 0:01:57]}  Bxd1 {[%clk 0:02:22]} 13. Nxa5 {[%clk 0:01:56]}  Bxc2 {[%clk 0:02:20]} 14. Rfe1 {[%clk 0:01:49]}  Bxd3 {[%clk 0:02:09]} 15. Be3 {[%clk 0:01:41]}  b6 {[%clk 0:02:07]} 16. Nb3 {[%clk 0:01:38]}  Nf5 {[%clk 0:02:02]} 17. Rad1 {[%clk 0:01:31]}  Bb4 {[%clk 0:01:55]} 18. a3 {[%clk 0:01:27]}  Bxc3 {[%clk 0:01:40]} 19. bxc3 {[%clk 0:01:28]}  Nxe3 {[%clk 0:01:40]} 20. Rxe3 {[%clk 0:01:29]}  Bc2 {[%clk 0:01:39]} 21. Rxd8+ {[%clk 0:01:27]}  Rxd8 {[%clk 0:01:39]} 22. Nd4 {[%clk 0:01:28]}  Ba4 {[%clk 0:01:34]} 23. Re7 {[%clk 0:01:27]}  Rd7 {[%clk 0:01:33]} 24. Re8+ {[%clk 0:01:24]}  Kb7 {[%clk 0:01:32]} 25. Kh2 {[%clk 0:01:20]}  Rxd4 {[%clk 0:01:31]} 0-1


[Site "https://www.chess.com"]

[Event "Titled Tuesday Blitz March 14 Late 2023"]
[White "lisjakzlatko1"]
[Black "Chylewski, Patryk"]
[BlackFideId "1186191"]
[WhiteElo "2166"]
[BlackElo "2163"]
[Result "0-1"]
[Round "01"]
[TimeControl "180+2"]
[Date "2023.03.14"]
[WhiteClock "0:00:19"]
[BlackClock "0:00:34"]

1. d4 {[%clk 0:02:59]}  Nf6 {[%clk 0:02:59]} 2. Nc3 {[%clk 0:02:52]}  d5 {[%clk 0:02:58]} 3. Bf4 {[%clk 0:02:51]}  a6 {[%clk 0:02:57]} 4. e3 {[%clk 0:02:48]}  e6 {[%clk 0:02:55]} 5. Bd3 {[%clk 0:02:42]}  c5 {[%clk 0:02:55]} 6. Nf3 {[%clk 0:02:37]}  Nc6 {[%clk 0:02:55]} 7. a3 {[%clk 0:02:29]}  Bd6 {[%clk 0:02:54]} 8. dxc5 {[%clk 0:02:27]}  Bxc5 {[%clk 0:02:54]} 9. e4 {[%clk 0:02:27]}  dxe4 {[%clk 0:02:36]} 10. Nxe4 {[%clk 0:02:25]}  Be7 {[%clk 0:02:36]} 11. O-O {[%clk 0:02:18]}  O-O {[%clk 0:02:25]} 12. Qe2 {[%clk 0:01:58]}  Qa5 {[%clk 0:02:19]} 13. b4 {[%clk 0:01:39]}  Qh5 {[%clk 0:01:48]} 14. Ng3 {[%clk 0:01:26]}  Qg4 {[%clk 0:01:39]} 15. Bc7 {[%clk 0:01:15]}  Nd4 {[%clk 0:01:05]} 16. Nxd4 {[%clk 0:01:07]}  Qxd4 {[%clk 0:01:06]} 17. Be5 {[%clk 0:01:01]}  Qg4 {[%clk 0:01:03]} 18. f3 {[%clk 0:00:52]}  Qh4 {[%clk 0:01:02]} 19. c4 {[%clk 0:00:43]}  Bd7 {[%clk 0:00:52]} 20. Rad1 {[%clk 0:00:38]}  Rfd8 {[%clk 0:00:50]} 21. Bb1 {[%clk 0:00:38]}  Ba4 {[%clk 0:00:48]} 22. Bc2 {[%clk 0:00:28]}  Bxc2 {[%clk 0:00:46]} 23. Qxc2 {[%clk 0:00:27]}  Nd7 {[%clk 0:00:41]} 24. Bb2 {[%clk 0:00:20]}  Nb6 {[%clk 0:00:41]} 25. c5 {[%clk 0:00:19]}  Nd5 {[%clk 0:00:41]} 26. Ne4 {[%clk 0:00:19]}  Qh6 {[%clk 0:00:34]} 0-1


[Site "https://www.chess.com"]

[Event "Titled Tuesday Blitz March 14 Late 2023"]
[White "Comas Fabrego, Lluis"]
[Black "Estrada Nieto, Julian"]
[WhiteFideId "2200325"]
[BlackFideId "5101018"]
[WhiteElo "2523"]
[BlackElo "2176"]
[Result "1-0"]
[Round "01"]
[TimeControl "180+2"]
[Date "2023.03.14"]
[WhiteClock "0:00:11"]
[BlackClock "0:00:01"]

1. Nf3 {[%clk 0:02:59]}  d5 {[%clk 0:02:31]} 2. d4 {[%clk 0:02:57]}  Nf6 {[%clk 0:02:29]} 3. c4 {[%clk 0:02:55]}  dxc4 {[%clk 0:02:29]} 4. e3 {[%clk 0:02:55]}  e6 {[%clk 0:02:28]} 5. Bxc4 {[%clk 0:02:54]}  a6 {[%clk 0:02:29]} 6. O-O {[%clk 0:02:52]}  c5 {[%clk 0:02:28]} 7. b3 {[%clk 0:02:49]}  Nc6 {[%clk 0:02:25]} 8. Bb2 {[%clk 0:02:48]}  cxd4 {[%clk 0:02:25]} 9. Nxd4 {[%clk 0:02:48]}  Bd7 {[%clk 0:02:26]} 10. Nc3 {[%clk 0:02:22]}  Nxd4 {[%clk 0:02:20]} 11. Qxd4 {[%clk 0:02:20]}  Bc6 {[%clk 0:02:19]} 12. Qxd8+ {[%clk 0:02:15]}  Rxd8 {[%clk 0:02:18]} 13. Rfd1 {[%clk 0:02:15]}  Rxd1+ {[%clk 0:02:05]} 14. Rxd1 {[%clk 0:02:14]}  Be7 {[%clk 0:02:00]} 15. Ne2 {[%clk 0:02:13]}  O-O {[%clk 0:01:56]} 16. Nd4 {[%clk 0:02:12]}  Rd8 {[%clk 0:01:39]} 17. Be2 {[%clk 0:02:11]}  Bd7 {[%clk 0:01:38]} 18. Bf3 {[%clk 0:02:09]}  Bc8 {[%clk 0:01:38]} 19. Nc2 {[%clk 0:01:42]}  Rxd1+ {[%clk 0:01:34]} 20. Bxd1 {[%clk 0:01:43]}  Nd7 {[%clk 0:01:27]} 21. Bf3 {[%clk 0:01:39]}  Bf6 {[%clk 0:01:26]} 22. Bxf6 {[%clk 0:01:38]}  Nxf6 {[%clk 0:01:26]} 23. g4 {[%clk 0:01:14]}  Kf8 {[%clk 0:01:25]} 24. g5 {[%clk 0:01:14]}  Ne8 {[%clk 0:01:14]} 25. b4 {[%clk 0:01:12]}  Ke7 {[%clk 0:01:12]} 26. Be4 {[%clk 0:01:09]}  g6 {[%clk 0:01:07]} 27. f4 {[%clk 0:01:09]}  Nd6 {[%clk 0:01:07]} 28. Bf3 {[%clk 0:01:03]}  Nc4 {[%clk 0:01:00]} 29. Kf2 {[%clk 0:01:01]}  Kd6 {[%clk 0:00:52]} 30. Nd4 {[%clk 0:00:59]}  e5 {[%clk 0:00:46]} 31. Nb3 {[%clk 0:00:57]}  exf4 {[%clk 0:00:41]} 32. exf4 {[%clk 0:00:56]}  b6 {[%clk 0:00:42]} 33. Nd4 {[%clk 0:00:50]}  Bd7 {[%clk 0:00:41]} 34. Be2 {[%clk 0:00:45]}  b5 {[%clk 0:00:38]} 35. Bxc4 {[%clk 0:00:36]}  bxc4 {[%clk 0:00:38]} 36. Ke3 {[%clk 0:00:36]}  Kd5 {[%clk 0:00:32]} 37. Ne2 {[%clk 0:00:36]}  Bg4 {[%clk 0:00:23]} 38. Nc3+ {[%clk 0:00:37]}  Kd6 {[%clk 0:00:18]} 39. Kd4 {[%clk 0:00:37]}  Be6 {[%clk 0:00:19]} 40. a4 {[%clk 0:00:35]}  Kc6 {[%clk 0:00:19]} 41. b5+ {[%clk 0:00:35]}  axb5 {[%clk 0:00:19]} 42. axb5+ {[%clk 0:00:34]}  Kb6 {[%clk 0:00:20]} 43. h4 {[%clk 0:00:23]}  Kb7 {[%clk 0:00:18]} 44. Kc5 {[%clk 0:00:22]}  Kc7 {[%clk 0:00:18]} 45. b6+ {[%clk 0:00:22]}  Kb7 {[%clk 0:00:19]} 46. Nb5 {[%clk 0:00:21]}  Bh3 {[%clk 0:00:15]} 47. Nd6+ {[%clk 0:00:21]}  Ka6 {[%clk 0:00:15]} 48. Nxc4 {[%clk 0:00:21]}  Bf1 {[%clk 0:00:15]} 49. Nd6 {[%clk 0:00:22]}  Bh3 {[%clk 0:00:13]} 50. Nxf7 {[%clk 0:00:21]}  Be6 {[%clk 0:00:13]} 51. Ne5 {[%clk 0:00:21]}  Bh3 {[%clk 0:00:13]} 52. Nc6 {[%clk 0:00:21]}  Kb7 {[%clk 0:00:13]} 53. Nb4 {[%clk 0:00:22]}  Bf1 {[%clk 0:00:12]} 54. Nd5 {[%clk 0:00:22]}  Bh3 {[%clk 0:00:12]} 55. Nf6 {[%clk 0:00:22]}  Bf5 {[%clk 0:00:10]} 56. Nxh7 {[%clk 0:00:23]}  Kc8 {[%clk 0:00:10]} 57. Nf6 {[%clk 0:00:24]}  Kd8 {[%clk 0:00:08]} 58. h5 {[%clk 0:00:25]}  gxh5 {[%clk 0:00:08]} 59. Nxh5 {[%clk 0:00:26]}  Kd7 {[%clk 0:00:07]} 60. Nf6+ {[%clk 0:00:27]}  Kc8 {[%clk 0:00:05]} 61. Kd6 {[%clk 0:00:26]}  Kb7 {[%clk 0:00:05]} 62. Ke7 {[%clk 0:00:26]}  Kxb6 {[%clk 0:00:05]} 63. Kf7 {[%clk 0:00:27]}  Kc6 {[%clk 0:00:05]} 64. g6 {[%clk 0:00:27]}  Kd6 {[%clk 0:00:04]} 65. g7 {[%clk 0:00:27]}  Be6+ {[%clk 0:00:05]} 66. Kf8 {[%clk 0:00:27]}  Bc4 {[%clk 0:00:04]} 67. Nh5 {[%clk 0:00:14]}  Kc5 {[%clk 0:00:03]} 68. Ng3 {[%clk 0:00:14]}  Kd4 {[%clk 0:00:03]} 69. f5 {[%clk 0:00:14]}  Ke5 {[%clk 0:00:03]} 70. Ke7 {[%clk 0:00:12]}  Bd5 {[%clk 0:00:02]} 71. f6 {[%clk 0:00:12]}  Kf4 {[%clk 0:00:01]} 72. f7 {[%clk 0:00:11]}  Kxg3 {[%clk 0:00:01]} 73. f8=Q {[%clk 0:00:11]} 1-0


[Site "https://www.chess.com"]

[Event "Titled Tuesday Blitz March 14 Late 2023"]
[White "Roebers, Eline"]
[Black "Aung Thant Zin"]
[WhiteFideId "1058401"]
[BlackFideId "13000063"]
[WhiteElo "2543"]
[BlackElo "2278"]
[Result "1-0"]
[Round "01"]
[TimeControl "180+2"]
[Date "2023.03.14"]
[WhiteClock "0:01:18"]
[BlackClock "0:00:01"]

1. e4 {[%clk 0:02:57]}  c5 {[%clk 0:02:59]} 2. Nf3 {[%clk 0:02:54]}  Nc6 {[%clk 0:02:59]} 3. d4 {[%clk 0:02:51]}  cxd4 {[%clk 0:02:59]} 4. Nxd4 {[%clk 0:02:52]}  Nf6 {[%clk 0:03:00]} 5. Nc3 {[%clk 0:02:49]}  d6 {[%clk 0:03:00]} 6. Nd5 {[%clk 0:02:49]}  Nxd5 {[%clk 0:02:38]} 7. exd5 {[%clk 0:02:50]}  Qa5+ {[%clk 0:02:36]} 8. Bd2 {[%clk 0:02:48]}  Qxd5 {[%clk 0:02:36]} 9. Nb5 {[%clk 0:02:49]}  Qe5+ {[%clk 0:01:55]} 10. Be2 {[%clk 0:02:47]}  d5 {[%clk 0:01:54]} 11. Bc3 {[%clk 0:02:35]}  Qb8 {[%clk 0:01:48]} 12. Qxd5 {[%clk 0:02:32]}  a6 {[%clk 0:01:47]} 13. Nd4 {[%clk 0:02:27]}  e6 {[%clk 0:01:10]} 14. Qe4 {[%clk 0:02:15]}  Bd7 {[%clk 0:01:03]} 15. O-O-O {[%clk 0:02:07]}  Be7 {[%clk 0:00:48]} 16. Nxc6 {[%clk 0:01:55]}  Bxc6 {[%clk 0:00:48]} 17. Qg4 {[%clk 0:01:56]}  Bf6 {[%clk 0:00:16]} 18. Bxf6 {[%clk 0:01:53]}  gxf6 {[%clk 0:00:16]} 19. Kb1 {[%clk 0:01:38]}  Ke7 {[%clk 0:00:14]} 20. Qb4+ {[%clk 0:01:30]}  Ke8 {[%clk 0:00:12]} 21. Rhe1 {[%clk 0:01:26]}  Rg8 {[%clk 0:00:11]} 22. g3 {[%clk 0:01:25]}  Qc7 {[%clk 0:00:08]} 23. Bh5 {[%clk 0:01:24]}  Qe7 {[%clk 0:00:01]} 24. Qb3 {[%clk 0:01:21]}  Kf8 {[%clk 0:00:01]} 25. Rd4 {[%clk 0:01:18]} 1-0


[Site "https://www.chess.com"]